bitfinex-derivatives/quotes_BTCF0:USTF0_20250509
["timestamp","ask_amount","ask_price","bid_price","bid_amount"]
[1746761968202,0.99890418,102610.0,102600.0,0.30640423]
[1746761972113,0.99890418,102610.0,102600.0,0.14640423]
[1746761973116,0.99890418,102610.0,102600.0,0.30640423]
[1746761973417,1.02910418,102610.0,102600.0,0.30640423]
[1746761973915,1.02910418,102610.0,102600.0,0.33750423]
[1746761977111,0.30750418,102610.0,102600.0,0.33750423]
[1746761977315,0.66830418,102610.0,102600.0,0.33750423]
[1746761978318,0.73210418,102610.0,102600.0,0.33750423]
[1746761981415,0.6601915,102610.0,102600.0,0.33750423]
[1746761981621,0.73210418,102610.0,102600.0,0.33750423]
[1746761985922,0.73210418,102610.0,102600.0,0.30640423]
[1746761986317,0.73210418,102610.0,102600.0,0.14640423]
[1746761987122,0.73210418,102610.0,102600.0,0.30640423]
[1746761987419,0.6601915,102610.0,102600.0,0.30640423]
[1746761987619,0.73210418,102610.0,102600.0,0.33760423]
[1746761987819,0.80401686,102610.0,102600.0,0.24210423]
[1746761988214,0.73210418,102610.0,102600.0,0.08210423]
[1746761988416,0.73210418,102610.0,102600.0,0.11280423]
[1746761989214,0.73210418,102610.0,102600.0,0.27280423]
[1746761989415,0.73210418,102610.0,102600.0,0.30310423]
[1746761989716,0.6601915,102610.0,102600.0,0.30310423]
[1746761990019,0.66830418,102610.0,102600.0,0.33430423]
[1746761990821,0.66830418,102610.0,102600.0,0.33735284]
[1746761991722,0.66830418,102610.0,102600.0,0.33430423]
[1746761992523,0.5963915,102610.0,102600.0,0.33430423]
[1746761992823,0.66830418,102610.0,102600.0,0.33430423]
[1746761994023,0.69960418,102610.0,102600.0,0.33430423]
[1746761994742,0.69960418,102610.0,102600.0,0.33735284]
[1746761996826,0.73170418,102610.0,102600.0,0.33735284]
[1746761997828,0.73170418,102610.0,102600.0,0.33430423]
[1746761998130,0.73170418,102610.0,102600.0,0.33735284]
[1746762003231,0.6597915,102610.0,102600.0,0.33735284]
[1746762003733,0.73170418,102610.0,102600.0,0.33735284]
[1746762004035,0.73670418,102610.0,102600.0,0.33735284]
[1746762004335,0.74070418,102610.0,102600.0,0.33735284]
[1746762006231,0.74070418,102610.0,102600.0,0.53233334]
[1746762006433,0.74070418,102610.0,102600.0,0.33735284]
[1746762008229,0.81261686,102610.0,102600.0,0.30615284]
[1746762008431,0.81261686,102610.0,102600.0,0.24515284]
[1746762008837,0.81261686,102610.0,102600.0,0.27440423]
[1746762009139,0.81261686,102610.0,102600.0,0.11440423]
[1746762009438,0.74070418,102610.0,102600.0,0.11440423]
[1746762009934,0.74070418,102610.0,102600.0,0.14580423]
[1746762010130,0.74070418,102610.0,102600.0,0.30580423]
[1746762011327,0.74070418,102610.0,102600.0,0.30885299]
[1746762011633,0.6687915,102610.0,102600.0,0.50383347]
[1746762011833,0.67730418,102610.0,102600.0,0.50383336]
[1746762012133,0.67730418,102610.0,102600.0,0.53483336]
[1746762013242,0.5973915,102610.0,102600.0,0.53383336]
[1746762013429,0.66630418,102610.0,102600.0,0.53483336]
[1746762013635,0.67330418,102610.0,102600.0,0.53483336]
[1746762014944,0.67330418,102610.0,102600.0,0.33985286]
[1746762015241,0.70620418,102610.0,102600.0,0.33985276]
[1746762015442,0.73920418,102610.0,102600.0,0.33985276]
[1746762017345,0.73920418,102610.0,102600.0,0.33985297]
[1746762018247,0.73920418,102610.0,102600.0,0.33680423]
[1746762018450,0.73920418,102610.0,102600.0,0.30580423]
[1746762018747,0.73920418,102610.0,102600.0,0.30885294]
[1746762018948,0.73920418,102610.0,102600.0,0.3088529]
[1746762020248,0.73920418,102610.0,102600.0,0.30580423]
[1746762020546,0.73920418,102610.0,102600.0,0.3088529]
[1746762020740,0.73920418,102610.0,102600.0,0.33995287]
[1746762024250,0.73920418,102610.0,102600.0,0.33995285]
[1746762029449,0.73920418,102610.0,102600.0,0.33690423]
[1746762029754,0.73920418,102610.0,102600.0,0.33995278]
[1746762031758,0.6672915,102610.0,102600.0,0.33995278]
[1746762031956,0.73920418,102610.0,102600.0,0.33690423]
[1746762036344,0.73920418,102610.0,102600.0,0.24210423]
[1746762037054,0.73920418,102610.0,102600.0,0.27280423]
[1746762037257,0.73920418,102610.0,102600.0,0.11280423]
[1746762037656,0.73920418,102610.0,102600.0,0.14400423]
[1746762040162,0.73920418,102610.0,102600.0,0.30400423]
[1746762040462,0.74320418,102610.0,102600.0,0.30400423]
[1746762044863,0.74320418,102610.0,102600.0,0.27280423]
[1746762045362,0.74320418,102610.0,102600.0,0.11280423]
[1746762047564,0.74320418,102610.0,102600.0,0.14380423]
[1746762049958,0.81511686,102610.0,102600.0,0.08210423]
[1746762052166,0.97511686,102610.0,102600.0,0.08210423]
[1746762055463,0.1949805,102600.0,102590.0,0.031]
[1746762055670,0.88594586,102600.0,102590.0,0.031]
[1746762055870,0.97938586,102600.0,102590.0,0.031]
[1746762056661,0.99038586,102600.0,102590.0,0.031]
[1746762057168,0.1949995,102590.0,102580.0,0.09882455]
[1746762057370,0.71931218,102590.0,102580.0,0.06832455]
[1746762058174,0.65801218,102590.0,102580.0,0.22832455]
[1746762058473,0.66501218,102590.0,102580.0,0.22832455]
[1746762059372,0.6748715,102590.0,102580.0,0.22832455]
[1746762059673,0.6773015,102590.0,102580.0,0.23137356]
[1746762060073,0.6773015,102590.0,102580.0,0.07137356]
[1746762060269,0.6773015,102590.0,102580.0,0.26639206]
[1746762060469,0.6773015,102590.0,102580.0,0.26334305]
[1746762060775,0.6773015,102590.0,102580.0,0.06832455]
[1746762061073,0.6773015,102590.0,102580.0,0.22832455]
[1746762061677,0.21428882,102590.0,102580.0,0.62334305]
[1746762061977,0.21428882,102590.0,102580.0,0.60639197]
[1746762062172,0.21428882,102590.0,102580.0,0.42639197]
[1746762062478,0.21428882,102590.0,102580.0,1.04910465]
[1746762063072,0.2044295,102590.0,102580.0,1.09467197]
[1746762063278,0.2044295,102590.0,102580.0,1.14658465]
[1746762063668,0.2044295,102590.0,102580.0,0.68830465]
[1746762063870,0.2044295,102590.0,102580.0,1.04910465]
[1746762064282,0.2044295,102590.0,102580.0,1.02910465]
[1746762064764,0.2044295,102590.0,102580.0,0.78719197]
[1746762064971,0.2044295,102590.0,102580.0,0.42639197]
[1746762065168,0.2367295,102590.0,102580.0,0.42639197]
[1746762065768,0.2044295,102590.0,102580.0,0.42639197]
[1746762066168,0.5652295,102590.0,102580.0,0.23137347]
[1746762066379,0.60731738,102590.0,102580.0,0.42639197]
[1746762066578,0.60731738,102590.0,102580.0,0.23137347]
[1746762066775,0.60731738,102590.0,102580.0,0.42639197]
[1746762066977,0.67923006,102590.0,102580.0,0.42639197]
[1746762067677,0.67923006,102590.0,102580.0,0.426392]
[1746762068376,0.67923006,102590.0,102580.0,0.2313735]
[1746762068577,0.67923006,102590.0,102580.0,0.44163679]
[1746762069174,0.74263006,102590.0,102580.0,0.44163679]
[1746762070180,0.67071738,102590.0,102580.0,0.44163679]
[1746762070479,0.74263006,102590.0,102580.0,0.44163679]
[1746762071180,0.74263006,102590.0,102580.0,0.47393679]
[1746762071679,0.67071738,102590.0,102580.0,0.47393679]
[1746762071881,0.60731738,102590.0,102580.0,0.47393679]
[1746762072681,0.24651738,102590.0,102580.0,0.47393679]
[1746762072982,0.60731738,102590.0,102580.0,0.47393675]
[1746762074982,0.67923006,102590.0,102580.0,0.47393675]
[1746762075373,0.67923006,102590.0,102580.0,0.47393677]
[1746762075574,0.60731738,102590.0,102580.0,0.47393677]
[1746762075774,0.67923006,102590.0,102580.0,0.47393677]
[1746762078783,0.67923006,102590.0,102580.0,0.27891827]
[1746762078984,0.74483006,102590.0,102580.0,0.24661827]
[1746762079376,0.74483006,102590.0,102580.0,0.21351827]
[1746762079676,0.74483006,102590.0,102580.0,0.40853677]
[1746762079978,0.74483006,102590.0,102580.0,0.21351827]
[1746762080176,0.74483006,102590.0,102580.0,0.08361854]
[1746762080874,0.1950185,102580.0,102570.0,0.00097493]
[1746762081177,0.1950565,102560.0,102550.0,0.14888402]
[1746762081385,0.62776918,102560.0,102550.0,0.40585952]
[1746762081576,0.33246918,102560.0,102550.0,0.40585952]
[1746762081777,0.33246918,102560.0,102550.0,0.43885952]
[1746762082278,0.29936918,102560.0,102550.0,0.61379317]
[1746762082474,0.30036918,102560.0,102550.0,0.59985952]
[1746762082885,0.29936918,102560.0,102550.0,0.59885952]
[1746762083084,0.30336918,102560.0,102550.0,0.59885952]
[1746762083381,0.30736918,102560.0,102550.0,0.59885952]
[1746762083783,0.30736918,102560.0,102550.0,0.4499755]
[1746762083979,0.66816918,102560.0,102550.0,0.4499755]
[1746762085187,0.5962565,102560.0,102550.0,0.4499755]
[1746762086184,0.6315865,102560.0,102550.0,0.4499755]
[1746762092490,0.70349918,102560.0,102550.0,0.4499755]
[1746762092690,0.6315865,102560.0,102550.0,0.4499755]
[1746762092889,0.70349918,102560.0,102550.0,0.45302535]
[1746762093291,0.70349918,102560.0,102550.0,0.46827462]
[1746762094391,0.73659918,102560.0,102550.0,0.46827462]
[1746762097396,0.37579918,102560.0,102550.0,0.46827462]
[1746762097591,0.73659918,102560.0,102550.0,0.46827462]
[1746762097793,0.6646865,102560.0,102550.0,0.46827463]
[1746762098094,0.73659918,102560.0,102550.0,0.46827463]
[1746762099687,0.73659918,102560.0,102550.0,0.4682747]
[1746762099995,0.73659918,102560.0,102550.0,0.46522477]
[1746762100293,0.73659918,102560.0,102550.0,0.46827471]
[1746762100493,0.6646865,102560.0,102550.0,0.46827471]
[1746762100894,0.73659918,102560.0,102550.0,0.46827471]
[1746762103992,0.73659918,102560.0,102550.0,0.43527471]
[1746762104298,0.73659918,102560.0,102550.0,0.20704927]
[1746762107305,0.73659918,102560.0,102550.0,0.21009924]
[1746762108891,0.73659918,102560.0,102550.0,0.40517474]
[1746762109093,0.73659918,102560.0,102550.0,0.43817474]
[1746762109803,0.6646865,102560.0,102550.0,0.43817474]
[1746762110002,0.73659918,102560.0,102550.0,0.43817474]
[1746762110300,0.73659918,102560.0,102550.0,0.27817474]
[1746762110898,0.73659918,102560.0,102550.0,0.08309924]
[1746762111099,0.73659918,102560.0,102550.0,0.24309924]
[1746762112004,0.37579918,102560.0,102550.0,0.24309923]
[1746762112200,0.73659918,102560.0,102550.0,0.24309923]
[1746762112401,0.37579918,102560.0,102550.0,0.24309923]
[1746762112798,0.73659918,102560.0,102550.0,0.24309923]
[1746762113705,0.73659918,102560.0,102550.0,0.24309921]
[1746762114705,0.73659918,102560.0,102550.0,0.21009921]
[1746762115602,0.73659918,102560.0,102550.0,0.21009923]
[1746762117295,0.73659918,102560.0,102550.0,0.05009923]
[1746762118107,0.73659918,102560.0,102550.0,0.21009923]
[1746762119104,0.73659918,102560.0,102550.0,0.05009923]
[1746762120111,0.73659918,102560.0,102550.0,0.21009923]
[1746762120302,0.73659918,102560.0,102550.0,0.24159923]
[1746762122210,0.73659918,102560.0,102550.0,0.08159923]
[1746762122908,0.80851186,102560.0,102550.0,0.01829923]
[1746762123116,0.80851186,102560.0,102550.0,0.01524927]
[1746762124207,0.90601986,102560.0,102550.0,0.01524927]
[1746762125112,0.1951136,102530.0,102520.0,0.0329]
[1746762125315,0.62782628,102530.0,102520.0,0.0965]
[1746762125509,0.72332628,102530.0,102520.0,0.0965]
[1746762125711,0.6514136,102530.0,102520.0,0.0965]
[1746762125912,0.72332628,102530.0,102520.0,0.0965]
[1746762126107,0.72332628,102530.0,102520.0,0.2565]
[1746762126716,0.72432628,102530.0,102520.0,0.2565]
[1746762127418,0.72532628,102530.0,102520.0,0.2565]
[1746762127817,0.2295136,102530.0,102520.0,0.52354528]
[1746762128220,0.2295136,102530.0,102520.0,0.46597391]
[1746762128613,0.2295136,102530.0,102520.0,0.27084131]
[1746762129013,0.36332628,102530.0,102520.0,0.27084131]
[1746762129215,0.72412628,102530.0,102520.0,0.27084131]
[1746762129618,0.6621124,102530.0,102520.0,0.27084131]
[1746762129820,0.73402508,102530.0,102520.0,0.27084131]
[1746762130620,0.73645508,102530.0,102520.0,0.27084131]
[1746762133222,0.73645508,102530.0,102520.0,0.2565]
[1746762136527,0.73645508,102530.0,102520.0,0.2237]
[1746762136823,0.73645508,102530.0,102520.0,0.0637]
[1746762137127,0.73645508,102530.0,102520.0,0.2237]
[1746762137430,0.6645424,102530.0,102520.0,0.2237]
[1746762137729,0.73645508,102530.0,102520.0,0.2237]
[1746762137931,0.80836776,102530.0,102520.0,0.17535443]
[1746762138127,0.1951131,102520.0,102510.0,0.00400205]
[1746762138326,0.79383846,102520.0,102510.0,0.00400205]
[1746762138527,0.7416931,102520.0,102510.0,0.06870205]
[1746762138719,0.88551846,102520.0,102510.0,0.06870205]
[1746762139121,0.97715846,102520.0,102510.0,0.22870205]
[1746762139321,0.97915846,102520.0,102510.0,0.22870205]
[1746762140328,0.97915846,102520.0,102510.0,0.26200205]
[1746762141421,0.97911846,102520.0,102510.0,0.19550205]
[1746762141828,0.94504835,102520.0,102510.0,0.19550205]
[1746762142130,0.94504835,102520.0,102510.0,0.22720205]
[1746762142430,0.94504835,102520.0,102510.0,0.26050205]
[1746762144531,0.95004835,102520.0,102510.0,0.26050205]
[1746762145030,0.95404835,102520.0,102510.0,0.26050205]
[1746762145328,0.95404835,102520.0,102510.0,0.16400205]
[1746762145527,1.0638036,102520.0,102510.0,0.16400205]
[1746762145830,0.95404835,102520.0,102510.0,0.16400205]
[1746762146231,1.11404835,102520.0,102510.0,0.00400205]
[1746762146432,1.12849117,102520.0,102510.0,0.00400205]
[1746762147135,0.96849117,102520.0,102510.0,0.06520205]
[1746762147432,1.07824642,102520.0,102510.0,0.00400205]
[1746762147633,0.96849117,102520.0,102510.0,0.00400205]
[1746762148126,0.96837117,102520.0,102510.0,0.00400205]
[1746762148327,0.96837117,102520.0,102510.0,0.03500205]
[1746762148728,0.87689117,102520.0,102510.0,0.06580205]
[1746762148925,0.78521117,102520.0,102510.0,0.09640205]
[1746762149130,0.61225592,102520.0,102510.0,0.25640205]
[1746762149330,0.58135592,102520.0,102510.0,0.45153415]
[1746762149531,0.22055592,102520.0,102510.0,0.45153415]
[1746762150526,0.22055592,102520.0,102510.0,0.46678866]
[1746762150725,0.22055592,102520.0,102510.0,0.76654391]
[1746762151032,0.22055592,102520.0,102510.0,0.63678866]
[1746762151231,0.22055592,102520.0,102510.0,0.46678866]
[1746762151529,0.22055592,102520.0,102510.0,0.83063954]
[1746762151733,0.2061131,102520.0,102510.0,1.12039477]
[1746762152330,0.2061131,102520.0,102510.0,1.01063952]
[1746762152528,0.2061131,102520.0,102510.0,0.83063952]
[1746762153029,0.2061131,102520.0,102510.0,1.02063934]
[1746762153833,0.2061131,102520.0,102510.0,0.83063934]
[1746762154034,0.2061131,102520.0,102510.0,1.01063934]
[1746762154035,0.2021131,102520.0,102510.0,1.01063934]
[1746762154234,0.1991131,102520.0,102510.0,0.83063934]
[1746762154421,0.1991131,102520.0,102510.0,1.02063934]
[1746762155228,0.1991131,102520.0,102510.0,1.00063934]
[1746762156536,0.1991131,102520.0,102510.0,1.00063935]
[1746762157335,0.1991131,102520.0,102510.0,1.1103946]
[1746762157931,0.1991131,102520.0,102510.0,0.83063935]
[1746762158132,0.1991131,102520.0,102510.0,1.02063935]
[1746762158637,0.1991131,102520.0,102510.0,1.1303946]
[1746762160236,0.1991131,102520.0,102510.0,1.13039462]
[1746762163643,0.004,102520.0,102510.0,1.13039462]
[1746762163846,0.1991131,102520.0,102510.0,1.13039462]
[1746762164143,0.1991131,102520.0,102510.0,1.13039454]
[1746762164645,0.1991131,102520.0,102510.0,1.13029454]
[1746762166744,0.004,102520.0,102510.0,1.13029454]
[1746762166936,0.1991131,102520.0,102510.0,1.13029454]
[1746762167137,0.1991131,102520.0,102510.0,1.13029452]
[1746762168250,0.004,102520.0,102510.0,1.13029452]
[1746762168544,0.00243,102530.0,102520.0,0.1951131]
[1746762168743,0.00243,102530.0,102520.0,0.93511896]
[1746762169347,0.00243,102530.0,102520.0,1.11037347]
[1746762169647,0.00243,102530.0,102520.0,1.16037317]
[1746762169837,0.00443,102530.0,102520.0,1.16037317]
[1746762170545,0.00643,102530.0,102520.0,1.30357317]
[1746762172345,0.00643,102530.0,102520.0,1.21249317]
[1746762172650,0.03653,102530.0,102520.0,1.30353317]
[1746762172947,0.03653,102530.0,102520.0,1.19377792]
[1746762173143,0.2316241,102530.0,102520.0,1.01161792]
[1746762173344,0.2946241,102530.0,102520.0,1.03161795]
[1746762174148,0.2946241,102530.0,102520.0,0.87161795]
[1746762174347,0.2946241,102530.0,102520.0,0.67161795]
[1746762175045,0.2946241,102530.0,102520.0,0.67161808]
[1746762176039,0.2946241,102530.0,102520.0,0.83161808]
[1746762178851,0.2946241,102530.0,102520.0,0.83179638]
[1746762179053,1.10609935,102530.0,102520.0,0.17948328]
[1746762179350,1.10609935,102530.0,102520.0,0.1764328]
[1746762179646,0.85629935,102530.0,102520.0,0.179484]
[1746762179849,0.94721935,102530.0,102520.0,0.179484]
[1746762180247,0.94721935,102530.0,102520.0,0.019484]
[1746762180649,0.94721935,102530.0,102520.0,0.01948392]
[1746762185056,0.94721935,102530.0,102520.0,0.01948393]
[1746762185249,0.94721935,102530.0,102520.0,0.17948393]
[1746762185749,1.04475535,102530.0,102520.0,0.17948393]
[1746762185952,1.04475535,102530.0,102520.0,0.1764328]
[1746762186141,1.20475535,102530.0,102520.0,0.0164328]
[1746762188156,1.04475535,102530.0,102520.0,0.0164328]
[1746762189455,0.94721935,102530.0,102520.0,0.0164328]
[1746762192652,0.76517935,102530.0,102520.0,0.0164328]
[1746762192957,0.94701935,102530.0,102520.0,0.0164328]
[1746762195065,0.1951131,102520.0,102510.0,0.00390205]
[1746762195358,0.76286835,102520.0,102510.0,0.00390205]
[1746762195550,0.8349131,102520.0,102510.0,0.00390205]
[1746762195753,0.94466835,102520.0,102510.0,0.03570205]
[1746762195953,0.94466835,102520.0,102510.0,0.06700205]
[1746762196160,0.76286835,102520.0,102510.0,0.06700205]
[1746762196362,0.94462835,102520.0,102510.0,0.06800205]
[1746762196562,0.94462835,102520.0,102510.0,0.06900205]
[1746762198065,0.94462835,102520.0,102510.0,0.06800205]
[1746762198259,0.95162835,102520.0,102510.0,0.06900205]
[1746762198459,0.95662835,102520.0,102510.0,0.06900205]
[1746762199763,0.99093654,102520.0,102510.0,0.06900205]
[1746762200551,0.99336654,102520.0,102510.0,0.06900205]
[1746762205059,0.99336654,102520.0,102510.0,0.09920205]
[1746762207072,0.99336654,102520.0,102510.0,0.11445875]
[1746762209065,1.15336654,102520.0,102510.0,0.11445875]
[1746762209374,1.15260654,102520.0,102510.0,0.11445875]
[1746762210071,0.97160654,102520.0,102510.0,0.11445875]
[1746762210273,1.15260654,102520.0,102510.0,0.11445875]
[1746762212173,0.99260654,102520.0,102510.0,0.11445875]
[1746762213070,0.81160654,102520.0,102510.0,0.11445875]
[1746762213374,0.99256654,102520.0,102510.0,0.11445875]
[1746762213975,0.8485031,102520.0,102510.0,0.11445875]
[1746762214276,0.99256654,102520.0,102510.0,0.11445875]
[1746762215075,1.15256654,102520.0,102510.0,0.11445875]
[1746762217174,0.99256654,102520.0,102510.0,0.11445875]
[1746762218177,1.15256654,102520.0,102510.0,0.11445875]
[1746762218873,1.26456552,102520.0,102500.0,0.10031045]
[1746762219179,0.1952274,102460.0,102450.0,0.3451065]
[1746762219374,0.1952274,102460.0,102450.0,0.29524168]
[1746762219375,0.33929084,102460.0,102450.0,0.29524168]
[1746762219971,0.26725912,102460.0,102450.0,0.29524168]
[1746762220170,0.33929084,102460.0,102450.0,0.28067938]
[1746762220673,0.2278274,102460.0,102450.0,0.50357348]
[1746762220976,0.27697206,102460.0,102450.0,0.50357348]
[1746762221370,0.35000378,102460.0,102450.0,0.31032708]
[1746762221571,0.38360378,102460.0,102450.0,0.31032708]
[1746762221772,0.34941554,102460.0,102450.0,0.31032708]
[1746762221972,0.71021554,102460.0,102450.0,0.3133798]
[1746762222174,0.87021554,102460.0,102450.0,0.28012708]
[1746762222378,1.02311554,102460.0,102450.0,0.28012708]
[1746762222580,1.02311554,102460.0,102450.0,0.31062708]
[1746762223174,0.86311554,102460.0,102450.0,0.31062708]
[1746762223681,0.86311554,102460.0,102450.0,0.06217608]
[1746762224481,0.77291554,102460.0,102450.0,0.06217608]
[1746762224682,0.86551554,102460.0,102450.0,0.06217608]
[1746762225382,0.86851554,102460.0,102450.0,0.06217608]
[1746762226675,0.33514034,102460.0,102450.0,0.25742248]
[1746762226882,0.21238034,102460.0,102450.0,0.25742248]
[1746762227684,0.21238034,102460.0,102450.0,0.61822248]
[1746762228382,0.00744,102460.0,102450.0,0.73115029]
[1746762228583,0.2026674,102460.0,102450.0,0.73115029]
[1746762228782,0.2026674,102460.0,102450.0,0.92115029]
[1746762229081,0.2026674,102460.0,102450.0,0.95127509]
[1746762229282,0.2026674,102460.0,102450.0,0.78127509]
[1746762230079,0.2026674,102460.0,102450.0,0.62127509]
[1746762231070,0.2026674,102460.0,102450.0,0.63653747]
[1746762231375,0.19778344,102460.0,102450.0,0.63636817]
[1746762232184,0.19778344,102460.0,102450.0,0.796368]
[1746762232973,0.19778344,102460.0,102450.0,2.296368]
[1746762233173,0.19578344,102460.0,102450.0,2.136368]
[1746762233377,0.19678344,102460.0,102450.0,2.136368]
[1746762234877,0.1972274,102460.0,102450.0,2.137368]
[1746762235079,0.28590577,102470.0,102460.0,0.1952274]
[1746762235286,0.28590577,102470.0,102460.0,0.62177984]
[1746762235783,0.28590577,102470.0,102460.0,0.63704222]
[1746762236388,0.28990577,102470.0,102460.0,0.63704222]
[1746762237080,0.29090577,102470.0,102460.0,0.63804222]
[1746762239592,0.29090577,102470.0,102460.0,0.66934214]
[1746762240587,0.01458707,102470.0,102460.0,0.77921734]
[1746762241086,0.20979537,102470.0,102460.0,0.66934214]
[1746762241492,0.27179537,102470.0,102460.0,0.66934214]
[1746762242992,0.38167057,102470.0,102460.0,0.66934214]
[1746762243200,0.54167057,102470.0,102460.0,0.66934214]
[1746762243394,0.43179537,102470.0,102460.0,0.66934214]
[1746762244290,0.43179537,102470.0,102460.0,0.66934211]
[1746762246195,0.24089537,102470.0,102460.0,0.82934211]
[1746762246893,0.27129537,102470.0,102460.0,0.82934211]
[1746762247295,0.27129537,102470.0,102460.0,0.66934211]
[1746762250094,0.43129537,102470.0,102460.0,0.66934211]
[1746762250893,0.54117057,102470.0,102460.0,0.63804211]
[1746762251097,0.27129537,102470.0,102460.0,0.60744211]
[1746762251296,0.27129537,102470.0,102460.0,0.63784211]
[1746762252391,0.43129537,102470.0,102460.0,0.63784211]
[1746762253100,0.43129537,102470.0,102460.0,0.27704211]
[1746762253300,0.43129537,102470.0,102460.0,0.63784211]
[1746762253602,0.42641161,102470.0,102460.0,0.27704211]
[1746762254095,0.26641161,102470.0,102460.0,0.27704211]
[1746762254294,0.29681161,102470.0,102460.0,0.30794211]
[1746762254699,0.29681161,102470.0,102460.0,0.66874211]
[1746762256802,0.23601161,102470.0,102460.0,0.7408158]
[1746762257100,0.2313083,102470.0,102460.0,0.9708158]
[1746762257401,0.005,102470.0,102460.0,0.93081573]
[1746762257600,0.005,102470.0,102460.0,1.00288942]
[1746762257800,0.2276028,102480.0,102470.0,0.1952083]
[1746762257994,0.2276028,102480.0,102470.0,0.88703425]
[1746762258196,0.36584756,102490.0,102480.0,0.1951893]
[1746762258391,0.39824756,102490.0,102480.0,0.65634156]
[1746762258901,0.39824756,102490.0,102480.0,0.67160394]
[1746762259201,0.39824756,102490.0,102480.0,0.67160337]
[1746762259404,0.40024756,102490.0,102480.0,0.67260337]
[1746762260293,0.0344,102490.0,102480.0,0.98238419]
[1746762260698,0.2295702,102490.0,102480.0,0.96238419]
[1746762261002,0.2295702,102490.0,102480.0,0.962384]
[1746762261504,0.2295702,102490.0,102480.0,0.85260318]
[1746762261694,0.2330002,102490.0,102480.0,0.85260318]
[1746762263801,0.2639002,102490.0,102480.0,0.67260318]
[1746762264298,0.2970002,102490.0,102480.0,0.67260318]
[1746762265204,0.00543,102490.0,102480.0,0.60530318]
[1746762265408,0.2006002,102490.0,102480.0,0.948384]
[1746762265595,0.2006002,102490.0,102480.0,0.66860318]
[1746762265797,0.2318002,102490.0,102480.0,0.66860318]
[1746762266104,0.4560002,102490.0,102480.0,0.66860318]
[1746762269213,0.2960002,102490.0,102480.0,0.66860318]
[1746762270009,0.2960002,102490.0,102480.0,0.66555168]
[1746762270312,0.2960002,102490.0,102480.0,0.66860331]
[1746762271913,0.2960002,102490.0,102480.0,0.66860327]
[1746762273716,0.2960002,102490.0,102480.0,0.66860329]
[1746762275719,0.2960002,102490.0,102480.0,0.66860332]
[1746762276721,0.2960002,102490.0,102480.0,0.66555168]
[1746762278221,0.2960002,102490.0,102480.0,0.63545168]
[1746762280120,0.40578102,102490.0,102480.0,0.63545168]
[1746762280918,0.2960002,102490.0,102480.0,0.63545168]
[1746762281116,0.4560002,102490.0,102480.0,0.63545168]
[1746762281722,0.52804882,102490.0,102480.0,0.63545168]
[1746762281922,0.4560002,102490.0,102480.0,0.63545168]
[1746762282124,0.2960002,102490.0,102480.0,0.66675168]
[1746762283618,0.36804882,102490.0,102480.0,0.40986238]
[1746762283823,0.72884882,102490.0,102480.0,0.21145168]
[1746762284017,0.36804882,102490.0,102480.0,0.21145168]
[1746762285021,0.72884882,102490.0,102480.0,0.21145168]
[1746762285223,0.88884882,102490.0,102480.0,0.21145168]
[1746762285726,0.92660652,102490.0,102480.0,0.21145168]
[1746762286129,0.92660652,102490.0,102480.0,0.01626238]
[1746762286319,0.56580652,102490.0,102480.0,0.21145168]
[1746762286519,0.92660652,102490.0,102480.0,0.21145168]
[1746762287329,0.56580652,102490.0,102480.0,0.21145168]
[1746762287626,0.92660652,102490.0,102480.0,0.21145168]
[1746762288025,0.56580652,102490.0,102480.0,0.21145168]
[1746762288415,0.92660652,102490.0,102480.0,0.01626238]
[1746762288620,1.01560652,102490.0,102480.0,0.01626238]
[1746762289014,1.26560652,102490.0,102480.0,0.001]
[1746762289218,0.1952464,102450.0,102430.0,0.70834732]
[1746762289418,0.0976301,102450.0,102430.0,0.95243902]
[1746762289624,0.2928765,102450.0,102440.0,0.0325]
[1746762289823,0.3245765,102450.0,102440.0,0.0325]
[1746762290023,0.3245765,102450.0,102440.0,0.064]
[1746762290725,0.3255765,102450.0,102440.0,0.064]
[1746762291230,0.3265765,102450.0,102440.0,0.064]
[1746762291425,0.33652672,102450.0,102440.0,0.067]
[1746762292130,0.33652672,102450.0,102440.0,0.069]
[1746762292335,0.42544672,102450.0,102440.0,0.069]
[1746762293238,0.33652672,102450.0,102440.0,0.069]
[1746762293533,0.42544672,102450.0,102440.0,0.069]
[1746762295432,0.42544672,102450.0,102440.0,0.4298]
[1746762295733,0.53525304,102450.0,102440.0,0.4298]
[1746762296036,0.42544672,102450.0,102440.0,0.4298]
[1746762296235,0.69525304,102450.0,102440.0,0.4298]
[1746762297232,0.53525304,102450.0,102440.0,0.4298]
[1746762300233,0.33652672,102450.0,102440.0,0.6250655]
[1746762300435,0.30482672,102450.0,102440.0,0.6250655]
[1746762301332,0.33642672,102450.0,102440.0,0.6250655]
[1746762301529,0.33642672,102450.0,102440.0,0.6403298]
[1746762303134,0.44623304,102450.0,102440.0,0.6403298]
[1746762303435,0.44523304,102450.0,102440.0,0.6373298]
[1746762303730,0.44523304,102450.0,102440.0,0.6383298]
[1746762303731,0.1972464,102450.0,102440.0,0.6383298]
[1746762304123,0.1962464,102450.0,102440.0,0.6363298]
[1746762304326,0.1972464,102450.0,102440.0,0.6383298]
[1746762305634,0.1996864,102450.0,102440.0,0.6383298]
[1746762306224,0.1996864,102450.0,102440.0,0.8283298]
[1746762306423,0.1996864,102450.0,102440.0,0.6383298]
[1746762306630,0.1996864,102450.0,102440.0,0.7983298]
[1746762307336,0.30949272,102450.0,102440.0,0.6383298]
[1746762307736,0.1996864,102450.0,102440.0,0.6383298]
[1746762308837,0.20923594,102450.0,102440.0,0.6383298]
[1746762309038,0.35204226,102450.0,102440.0,0.6383298]
[1746762309337,0.57454226,102450.0,102440.0,0.6383298]
[1746762310130,0.38404226,102450.0,102440.0,0.6383298]
[1746762310331,0.35204226,102450.0,102440.0,0.6383298]
[1746762310532,0.34249272,102450.0,102440.0,0.6383298]
[1746762310733,0.2326864,102450.0,102440.0,0.6383298]
[1746762311633,0.34249272,102450.0,102440.0,0.6383298]
[1746762312029,0.37449272,102450.0,102440.0,0.6383298]
[1746762312232,0.48429904,102450.0,102440.0,0.0822643]
[1746762312433,0.37449272,102450.0,102440.0,0.2775298]
[1746762312736,0.37449272,102450.0,102440.0,0.0822643]
[1746762312937,0.37449272,102450.0,102440.0,0.2775298]
[1746762314139,0.37449272,102450.0,102440.0,0.0182643]
[1746762314339,0.37449272,102450.0,102440.0,0.2135298]
[1746762314340,0.48429904,102450.0,102440.0,0.2135298]
[1746762314540,0.37449272,102450.0,102440.0,0.2135298]
[1746762314733,0.39194821,102450.0,102440.0,0.2135298]
[1746762315332,0.86255453,102450.0,102440.0,0.2135298]
[1746762316147,0.86255453,102450.0,102440.0,0.0182643]
[1746762318235,0.86255453,102450.0,102440.0,0.2135298]
[1746762318436,0.86255453,102450.0,102440.0,0.0182643]
[1746762318747,0.86255453,102450.0,102440.0,0.2135298]
[1746762319138,0.75274821,102450.0,102440.0,0.2442298]
[1746762320644,0.39194821,102450.0,102440.0,0.2442298]
[1746762320939,0.75274821,102450.0,102440.0,0.2773298]
[1746762321149,0.39194821,102450.0,102440.0,0.2773298]
[1746762322442,0.28214189,102450.0,102440.0,0.2773298]